bitfinex-derivatives/quotes_ETHF0:USTF0_20250502
["timestamp","ask_amount","ask_price","bid_price","bid_amount"]
[1746208536245,1.7075,1851.7,1851.6,2.69186]
[1746208536842,3.2078,1851.8,1851.7,1.07971]
[1746208537050,3.2078,1851.8,1851.7,3.55251]
[1746208537548,4.819,1851.8,1851.6,1.07973]
[1746208537749,3.51001,1851.7,1851.6,1.07973]
[1746208538046,7.20601,1851.7,1851.6,1.07973]
[1746208538953,5.3072,1851.7,1851.6,1.07973]
[1746208539254,1.6112,1851.7,1851.6,2.77063]
[1746208539748,2.69091,1851.7,1851.6,2.77063]
[1746208539954,2.69091,1851.7,1851.6,1.07973]
[1746208540151,1.07982,1851.5,1851.4,1.6723]
[1746208540341,1.07982,1851.5,1851.1,10.4277201]
[1746208540342,1.08,1851.2,1851.1,7.2199201]
[1746208540547,1.08,1851.2,1851.1,49.0999801]
[1746208541154,2.67738,1851.3,1851.2,1.08]
[1746208541357,1.5974,1851.3,1851.2,1.08]
[1746208541543,0.8191,1851.6,1851.2,1.08]
[1746208541750,2.67723,1851.5,1851.4,3.2078]
[1746208541948,2.67722,1851.5,1851.4,4.28768]
[1746208542150,2.67722,1851.5,1851.4,1.07988]
[1746208542344,1.5974,1851.5,1851.4,1.07988]
[1746208542548,1.5974,1851.5,1851.4,5.98608]
[1746208545954,2.67722,1851.5,1851.4,5.98608]
[1746208546152,1.5974,1851.5,1851.4,5.98608]
[1746208546346,2.67722,1851.5,1851.4,4.28768]
[1746208546761,2.67722,1851.5,1851.4,3.2078]
[1746208546953,1.0799,1851.4,1851.3,1.07989]
[1746208547149,1.7198,1851.4,1851.3,1.07989]
[1746208548652,1.7198,1851.4,1851.3,1.91749]
[1746208549258,1.89891,1851.6,1851.3,1.91749]
[1746208549259,0.8191,1851.6,1851.5,1.07982]
[1746208549759,1.89886,1851.6,1851.5,1.07982]
[1746208550056,3.60236,1851.6,1851.5,1.07982]
[1746208550553,1.07986,1851.5,1851.4,1.07984]
[1746208550754,2.78336,1851.5,1851.4,1.07984]
[1746208551057,1.7035,1851.5,1851.4,1.07984]
[1746208552365,2.78332,1851.5,1851.4,1.07984]
[1746208552663,3.58842,1851.5,1851.4,1.07984]
[1746208555961,2.5086,1851.5,1851.4,1.07984]
[1746208556363,1.7035,1851.5,1851.4,1.07984]
[1746208556560,1.7035,1851.5,1851.4,2.79304]
[1746208556958,0.824,1851.7,1851.6,1.07976]
[1746208557264,3.56151,1851.7,1851.6,1.07976]
[1746208557464,3.56151,1851.7,1851.6,3.60896]
[1746208558259,3.56151,1851.7,1851.6,1.07976]
[1746208559058,7.25751,1851.7,1851.6,1.07976]
[1746208559463,7.69772182,1851.7,1851.6,1.07976]
[1746208563266,4.00172182,1851.7,1851.6,1.07976]
[1746208565266,1.82e-06,1851.7,1851.6,6.07976]
[1746208565571,1.40130831,1851.9,1851.8,1.07965]
[1746208565769,1.40130831,1851.9,1851.8,4.28745]
[1746208566063,1.40130831,1851.9,1851.8,9.28745]
[1746208566259,1.40130831,1851.9,1851.8,14.58545]
[1746208568371,1.40130831,1851.9,1851.8,9.58545]
[1746208569073,10.71256613,1852.4,1852.3,1.07936]
[1746208569269,10.71256613,1852.4,1852.3,4.28716]
[1746208569473,10.71256613,1852.4,1852.3,45.08716]
[1746208569671,10.71256613,1852.4,1852.3,46.75306]
[1746208570572,13.45576613,1852.4,1852.3,41.87936]
[1746208570776,2.5349,1852.4,1852.3,41.87936]
[1746208571672,2.5349,1852.4,1852.3,1.07936]
[1746208572474,9.00608446,1852.9,1852.8,1.07906]
[1746208572868,10.70378446,1852.9,1852.8,1.07906]
[1746208573875,1.6977,1852.9,1852.8,1.07906]
[1746208575174,5.3937,1852.9,1852.8,1.07906]
[1746208575778,6.47271,1852.9,1852.8,1.07906]
[1746208575972,5.3937,1852.9,1852.8,1.07906]
[1746208577680,5.82107549,1852.9,1852.8,1.07906]
[1746208577978,6.90008549,1852.9,1852.8,1.07906]
[1746208579273,4.12337549,1852.9,1852.8,4.58306]
[1746208579479,4.12337549,1852.9,1852.8,8.05396]
[1746208579670,3.696,1852.9,1852.8,8.05396]
[1746208579873,3.696,1852.9,1852.8,48.85396]
[1746208580272,1.7249,1853.2,1853.1,1.07889]
[1746208580878,2.15189223,1853.2,1853.1,1.07889]
[1746208581079,5.84789223,1853.2,1853.1,1.07889]
[1746208581671,6.92672223,1853.2,1853.1,1.07889]
[1746208581867,5.84789223,1853.2,1853.1,1.07889]
[1746208584178,2.15189223,1853.2,1853.1,1.07889]
[1746208584476,2.15189223,1853.2,1853.1,4.28669]
[1746208585078,2.15189223,1853.2,1853.1,5.12909]
[1746208585272,0.42699223,1853.2,1853.1,8.63209]
[1746208585673,1.5895,1853.4,1853.3,1.07877]
[1746208585876,2.0162819,1853.4,1853.3,4.28657]
[1746208586381,2.0162819,1853.4,1853.3,5.94837]
[1746208586582,0.4267819,1853.4,1853.3,5.94837]
[1746208588283,1.5055019,1853.4,1853.3,4.28657]
[1746208589172,5.2015019,1853.4,1853.3,4.28657]
[1746208590278,4.1227819,1853.4,1853.3,4.28657]
[1746208590477,5.2015019,1853.4,1853.3,4.28657]
[1746208590681,4.1227819,1853.4,1853.3,4.28657]
[1746208591591,5.8487819,1853.4,1853.3,4.28657]
[1746208591881,6.9275019,1853.4,1853.3,4.28657]
[1746208592184,3.2315019,1853.4,1853.3,4.28657]
[1746208592382,2.1527819,1853.4,1853.3,4.28657]
[1746208592583,3.2315019,1853.4,1853.3,1.07877]
[1746208592979,2.1527819,1853.4,1853.3,1.07877]
[1746208593180,3.2315019,1853.4,1853.3,1.07877]
[1746208594086,6.9275019,1853.4,1853.3,1.07877]
[1746208594584,1.07883,1853.3,1853.2,1.07881]
[1746208594884,1.07883,1853.2,1853.1,4.58186]
[1746208595084,5.57213,1853.2,1853.1,1.07886]
[1746208595288,6.1862,1853.2,1853.1,1.07886]
[1746208595582,7.6918119,1853.2,1853.1,1.07886]
[1746208595781,6.6129819,1853.2,1853.1,1.07886]
[1746208596287,2.9169819,1853.2,1853.1,1.07886]
[1746208596485,3.9958119,1853.2,1853.1,1.07886]
[1746208596987,2.9169819,1853.2,1853.1,1.07886]
[1746208597485,1.94337,1853.3,1853.2,1.07883]
[1746208597686,3.22485355,1853.3,1853.2,1.07883]
[1746208598079,6.92085355,1853.3,1853.2,1.07883]
[1746208600089,8.50465355,1853.3,1853.2,1.07883]
[1746208600779,1.07888,1853.2,1853.1,1.07884]
[1746208600987,1.07901,1852.9,1852.8,46.23062]
[1746208601183,0.42888355,1852.9,1852.8,3.503]
[1746208601387,0.42888355,1852.9,1852.8,1.07906]
[1746208601784,2.83828355,1852.9,1852.8,1.07906]
[1746208601980,2.83828355,1852.9,1852.8,1.90916]
[1746208602187,0.42888355,1852.9,1852.8,3.53236]
[1746208602590,0.42888355,1852.9,1852.8,8.53236]
[1746208602990,0.42888355,1852.9,1852.8,12.08436]
[1746208603395,0.42888355,1852.9,1852.8,7.08436]
[1746208605297,3.10149355,1852.9,1852.8,7.08436]
[1746208605491,3.90739355,1852.9,1852.8,4.63106]
[1746208605889,2.82838355,1852.9,1852.8,4.63106]
[1746208606595,3.90739355,1852.9,1852.8,4.63106]
[1746208606792,2.82838355,1852.9,1852.8,4.63106]
[1746208606997,2.82838355,1852.9,1852.8,1.07906]
[1746208607195,3.90739355,1852.9,1852.8,1.07906]
[1746208608097,6.52438355,1852.9,1852.8,1.07906]
[1746208608597,6.52438355,1852.9,1852.8,3.55806]
[1746208610698,6.52438355,1852.9,1852.8,4.37536]
[1746208611101,2.82838355,1852.9,1852.8,4.37536]
[1746208611488,2.02248355,1852.9,1852.8,4.37536]
[1746208615498,0.42888355,1852.9,1852.8,4.37536]
[1746208618603,0.42888355,1852.9,1852.8,7.92736]
[1746208621900,0.42888355,1852.9,1852.8,4.37536]
[1746208622106,0.42888355,1852.9,1852.8,7.92736]
[1746208622702,1.07866,1853.6,1852.8,23.15963]
[1746208623005,2.68896,1853.5,1853.4,1.07872]
[1746208624102,6.38496,1853.5,1853.4,1.07872]
[1746208626109,3.696,1853.5,1853.4,1.07872]
[1746208626707,3.696,1853.5,1853.4,3.58882]
[1746208626905,5.3944,1853.5,1853.4,3.58882]
[1746208627609,6.47306,1853.5,1853.4,1.07872]
[1746208628309,1.07877,1853.4,1853.3,1.07874]
[1746208628508,4.44627,1853.4,1853.3,1.07874]
[1746208629004,3.3675,1853.4,1853.3,1.07874]
[1746208629207,7.0635,1853.4,1853.3,1.07874]
[1746208631510,8.14222,1853.4,1853.3,1.07874]
[1746208632310,1.07883,1853.3,1853.2,1.0788]
[1746208632512,2.71913,1853.3,1853.2,1.0788]
[1746208633108,6.41513,1853.3,1853.2,1.0788]
[1746208633798,3.696,1853.3,1853.2,1.0788]
[1746208634200,0.8731,1853.4,1853.3,1.07877]
[1746208634404,3.59212,1853.4,1853.3,1.07877]
[1746208634903,4.01754496,1853.4,1853.3,1.92387]
[1746208636212,7.71354496,1853.4,1853.3,1.92387]
[1746208637011,1.07885,1853.3,1853.2,1.07879]
[1746208637314,7.30025,1853.3,1853.2,1.07879]
[1746208637812,7.72567496,1853.3,1853.2,1.07879]
[1746208639016,7.72588393,1853.3,1853.2,1.07879]
[1746208639711,1.07889,1853.2,1853.0,5.90517]
[1746208639921,2.77239,1853.2,1853.1,1.07884]
[1746208640218,1.07889,1853.1,1853.0,4.28674]
[1746208640412,3.696,1853.2,1853.1,1.07889]
[1746208640715,5.81516959,1853.2,1853.1,1.07889]
[1746208642016,6.89399959,1853.2,1853.1,1.07889]
[1746208642519,5.81516959,1853.2,1853.1,1.07889]
[1746208643218,5.81516959,1853.2,1853.1,4.38109]
[1746208643929,5.81516959,1853.2,1853.1,1.07889]
[1746208644122,4.12166959,1853.2,1853.1,1.07889]
[1746208644627,4.12166959,1853.2,1853.1,2.74829]
[1746208644926,5.78606959,1853.2,1853.1,2.74829]
[1746208646916,4.12166959,1853.2,1853.1,2.74829]
[1746208651233,0.42566959,1853.2,1853.1,2.74829]
[1746208654231,2.08066959,1853.2,1853.1,2.74829]
[1746208656230,5.77666959,1853.2,1853.1,2.74829]
[1746208656631,4.12166959,1853.2,1853.1,2.74829]
[1746208657234,0.42566959,1853.2,1853.1,2.74829]
[1746208660935,1.6928,1853.5,1853.4,1.07872]
[1746208661334,2.1188392,1853.5,1853.4,1.07872]
[1746208661840,0.4260392,1853.5,1853.4,4.28652]
[1746208662335,0.4260392,1853.5,1853.4,5.94362]
[1746208662941,9.2e-06,1853.5,1853.4,5.94362]
[1746208663330,8.91718922,1854.0,1853.9,1.07842]
[1746208663841,1.07851,1853.8,1853.7,41.87851]
[1746208664030,2.68447,1853.9,1853.8,1.07848]
[1746208664630,4.30407,1853.9,1853.8,1.07848]
[1746208665134,8.00007,1853.9,1853.8,1.07848]
[1746208666140,6.9216,1853.9,1853.8,1.07848]
[1746208666735,3.696,1853.9,1853.8,1.07848]
[1746208666937,3.696,1853.9,1853.8,2.76018]
[1746208667442,5.3085,1853.9,1853.8,2.76018]
[1746208667738,5.3085,1853.9,1853.8,1.07848]
[1746208668442,6.928,1853.9,1853.8,1.07848]
[1746208672146,8.00642,1853.9,1853.8,1.07848]
[1746208672445,1.07848,1853.8,1853.7,3.2078]
[1746208672745,2.81898,1853.8,1853.7,4.28634]
[1746208673138,6.51498,1853.8,1853.7,4.28634]
[1746208673342,1.07865,1853.6,1853.5,3.2078]
[1746208673548,1.07865,1853.6,1853.5,1.07861]
[1746208673842,1.07872,1853.4,1853.3,8.2986501]
[1746208674050,1.07872,1853.4,1853.3,1.07873]
[1746208674545,3.64372,1853.4,1853.3,1.07873]
[1746208674940,1.07886,1853.2,1853.1,1.07883]
[1746208675141,4.77486,1853.2,1853.1,1.07883]
[1746208675639,5.19571066,1853.2,1853.1,1.07883]
[1746208678149,4.11685066,1853.2,1853.1,1.07883]
[1746208678542,5.75775066,1853.2,1853.1,1.07883]
[1746208679450,6.83658066,1853.2,1853.1,1.07883]
[1746208679652,5.75775066,1853.2,1853.1,1.07883]
[1746208679852,6.83658066,1853.2,1853.1,1.07883]
[1746208680752,1.07889,1853.1,1853.0,3.2078]
[1746208680951,3.56119,1853.1,1853.0,4.28675]
[1746208681148,7.25719,1853.1,1853.0,4.28675]
[1746208681340,7.67804066,1853.1,1853.0,4.28675]
[1746208682551,7.67804066,1853.1,1853.0,1.07895]
[1746208685754,1.07901,1852.9,1852.8,6.7298]
[1746208685954,1.07901,1852.9,1852.8,4.28686]
[1746208686147,4.77501,1852.9,1852.8,4.28686]
[1746208686354,6.91346066,1852.9,1852.8,4.28686]
[1746208686954,6.91346066,1852.9,1852.8,3.2078]
[1746208687254,1.07906,1852.8,1852.7,1.07909]
[1746208687450,3.62336,1852.8,1852.7,1.07909]
[1746208687645,4.04421066,1852.8,1852.7,1.07909]
[1746208687954,1.07912,1852.7,1852.6,1.07916]
[1746208688149,2.77592,1852.7,1852.6,1.07916]
[1746208688556,3.19677066,1852.7,1852.6,1.07916]
[1746208688859,1.07918,1852.6,1852.5,1.07921]
[1746208689052,1.07924,1852.5,1852.4,9.0975701]
[1746208689450,3.19689066,1852.5,1852.4,9.0975701]
[1746208690055,6.89289066,1852.5,1852.4,9.0975701]
[1746208690458,6.89289066,1852.5,1852.4,1.87765]
[1746208692358,6.89289066,1852.5,1852.4,3.54095]
[1746208695266,4.11685066,1852.5,1852.4,3.54095]
[1746208696062,0.42085066,1852.5,1852.4,3.54095]
[1746208696262,1.50009066,1852.5,1852.4,3.54095]
[1746208697362,2.32149066,1852.5,1852.4,1.87765]
[1746208698159,6.01749066,1852.5,1852.4,1.87765]
[1746208699864,4.11685066,1852.5,1852.4,1.87765]
[1746208700071,5.19609066,1852.5,1852.4,3.54395]
[1746208700367,1.50009066,1852.5,1852.4,3.54395]
[1746208702869,0.42085066,1852.5,1852.4,3.54395]
[1746208704667,0.42085066,1852.5,1852.4,8.54395]
[1746208705265,0.42085066,1852.5,1852.4,49.34395]
[1746208705669,1.7187,1852.8,1852.7,1.07912]
[1746208705862,2.13934758,1852.8,1852.7,1.07912]
[1746208706062,3.21840758,1852.8,1852.7,1.07912]
[1746208706568,2.13934758,1852.8,1852.7,1.88142]
[1746208706762,2.13939584,1852.8,1852.7,1.88142]
[1746208707168,2.13939584,1852.8,1852.7,5.08922]
[1746208707366,0.42069584,1852.8,1852.7,5.08922]
[1746208708369,2.77847,1853.0,1852.9,1.07901]
[1746208708569,3.1992875,1853.0,1852.9,1.07901]
[1746208708766,3.19929995,1853.0,1852.9,1.07901]
[1746208708965,3.19929995,1853.0,1852.9,2.81781]
[1746208709165,6.89525926,1853.0,1852.9,2.81781]
[1746208710268,6.89525926,1853.0,1852.9,1.7388]
[1746208710564,1.07901,1852.9,1852.8,1.93895]
[1746208710869,2.77851,1852.9,1852.8,1.93895]
[1746208711065,4.89149926,1852.9,1852.8,1.93895]
[1746208711270,8.58749926,1852.9,1852.8,1.93895]
[1746208711470,1.07906,1852.8,1852.7,4.28692]
[1746208711771,2.78216,1852.8,1852.7,4.28692]
[1746208712178,6.89894926,1852.8,1852.7,3.2078]
[1746208712360,6.89894926,1852.8,1852.7,4.28692]
[1746208714066,6.89894926,1852.8,1852.7,1.07912]
[1746208714266,1.07918,1852.6,1852.5,5.9932]
[1746208714569,1.07924,1852.5,1852.4,45.92255]
[1746208714768,3.58134,1852.5,1852.4,4.2871]
[1746208715074,4.81402926,1852.5,1852.4,4.2871]
[1746208715274,8.51002926,1852.5,1852.4,3.2078]
[1746208716773,8.51002926,1852.5,1852.4,4.2871]
[1746208719577,8.51002926,1852.5,1852.4,3.2078]
[1746208721076,8.51002926,1852.5,1852.3,13.44279454]
[1746208721077,1.0793,1852.4,1852.3,13.44279454]
[1746208721376,2.6963,1852.4,1852.3,13.44279454]
[1746208721877,3.11708926,1852.4,1852.3,13.44279454]
[1746208722078,6.81308926,1852.4,1852.3,13.44279454]
[1746208724172,3.11708926,1852.4,1852.3,13.44279454]
[1746208726777,1.50008926,1852.4,1852.3,13.44279454]
[1746208726976,0.42078926,1852.4,1852.3,13.44279454]
[1746208727680,1.50008926,1852.4,1852.3,13.44279454]
[1746208732488,1.50008926,1852.4,1852.3,16.65059454]
[1746208734980,1.07936,1852.3,1852.2,1.88181]
[1746208735182,1.07941,1852.2,1852.1,0.839]
[1746208735386,1.07941,1852.2,1852.1,4.28727]
[1746208735578,1.07941,1852.2,1852.0,9.8283201]
[1746208735579,1.07947,1852.1,1852.0,7.2199201]
[1746208735781,4.70805926,1852.1,1852.0,7.2199201]
[1746208735985,6.34355926,1852.1,1852.0,7.2199201]
[1746208736190,10.03955926,1852.1,1852.0,7.2199201]
[1746208738698,1.07953,1852.0,1851.9,1.07959]
[1746208738884,3.12241926,1852.0,1851.9,1.07959]
[1746208739087,6.81841926,1852.0,1851.9,1.07959]
[1746208741693,1.07959,1851.9,1851.8,3.5406]
[1746208741993,2.81199,1851.9,1851.8,3.5406]
[1746208742295,6.92877926,1851.9,1851.8,3.5406]
[1746208744094,3.23277926,1851.9,1851.8,3.5406]
[1746208744995,2.15318926,1851.9,1851.8,3.5406]
[1746208745895,3.23277926,1851.9,1851.8,3.5406]
[1746208746195,6.92877926,1851.9,1851.8,3.5406]
[1746208748289,3.23277926,1851.9,1851.8,3.5406]
[1746208748994,2.15318926,1851.9,1851.8,3.5406]
[1746208749197,5.84918926,1851.9,1851.8,3.5406]
[1746208752198,2.15318926,1851.9,1851.8,3.5406]
[1746208752389,3.696,1852.5,1852.4,1.0793]
[1746208752602,10.71256613,1853.1,1852.8,1.07906]
[1746208752798,1.6308,1853.0,1852.8,4.28686]
[1746208752985,1.6308,1853.0,1852.8,3.2078]
[1746208753191,2.70979,1853.0,1852.8,45.08686]
[1746208753392,9.75868922,1852.9,1852.8,45.08686]
[1746208753689,9.75868922,1852.9,1852.8,4.28686]
[1746208753690,11.38948922,1852.9,1852.8,4.28686]
[1746208755189,10.54798922,1852.9,1852.8,4.28686]
[1746208755388,10.54798922,1852.9,1852.8,5.94006]
[1746208755585,1.6308,1852.9,1852.8,5.94006]
[1746208756096,5.3268,1852.9,1852.8,5.94006]
[1746208757800,3.696,1852.9,1852.8,5.94006]
[1746208758202,2.76822,1853.1,1853.0,1.07895]
[1746208758392,1.07892,1853.1,1853.0,1.07895]
[1746208758810,1.90118,1853.2,1853.1,1.07889]
[1746208759300,5.59718,1853.2,1853.1,1.07889]
[1746208763293,1.07889,1853.1,1853.0,4.2867]
[1746208764200,4.77489,1853.1,1853.0,4.2867]
[1746208764600,4.77489,1853.1,1853.0,1.0789]
[1746208764789,4.77489,1853.1,1853.0,4.2867]
[1746208765297,3.696,1853.1,1853.0,4.2867]
[1746208765500,3.696,1853.1,1853.0,6.7642]
[1746208766102,1.90115,1853.2,1853.1,1.07889]
[1746208766302,1.90115,1853.2,1853.1,2.74259]
[1746208767202,5.59715,1853.2,1853.1,2.74259]
[1746208769000,4.5183,1853.2,1853.1,2.74259]
[1746208769196,5.59713,1853.2,1853.1,2.74259]
[1746208769597,7.29553,1853.2,1853.1,2.74259]
[1746208769997,7.29553,1853.2,1853.1,1.07889]
[1746208770501,1.07889,1853.1,1853.0,4.2867]
[1746208770701,2.77729,1853.1,1853.0,4.2867]
[1746208770902,1.6984,1853.1,1853.0,4.2867]
[1746208771095,5.3944,1853.1,1853.0,5.9765]
[1746208772202,1.6984,1853.1,1853.0,5.9765]
[1746208775007,2.77729,1853.1,1853.0,5.9765]
[1746208775506,1.6984,1853.1,1853.0,5.9765]
[1746208776812,2.77729,1853.1,1853.0,5.9765]
[1746208777104,6.47329,1853.1,1853.0,4.2867]
[1746208779209,6.47329,1853.1,1853.0,5.9871]
[1746208780614,6.47329,1853.1,1853.0,4.2867]
[1746208781209,6.47329,1853.1,1853.0,3.2078]
[1746208781606,6.47329,1853.1,1853.0,4.28675]
[1746208783506,6.91064261,1853.1,1853.0,4.28675]
[1746208783710,6.91064261,1853.1,1853.0,5.96085]
[1746208785614,6.91064261,1853.1,1853.0,2.75305]
[1746208786920,5.83175261,1853.1,1853.0,2.75305]
[1746208787219,6.91064261,1853.1,1853.0,1.07895]
[1746208792828,1.07895,1853.0,1852.9,3.2078]
[1746208793028,1.07901,1852.9,1852.8,1.07904]
[1746208793322,3.22626261,1852.9,1852.8,1.07904]
[1746208793724,4.84066261,1852.9,1852.8,1.07904]
[1746208794222,8.53666261,1852.9,1852.8,1.07904]
[1746208798634,8.53666261,1852.9,1852.8,2.75644]
[1746208799733,7.68536261,1852.9,1852.8,2.75644]
[1746208801033,6.60635261,1852.9,1852.8,2.75644]
[1746208801231,7.68536261,1852.9,1852.8,2.75644]
[1746208801931,4.13335261,1852.9,1852.8,2.75644]
[1746208802131,0.43735261,1852.9,1852.8,2.75644]
[1746208803440,2.6957,1853.0,1852.9,1.07901]
[1746208803739,3.13285741,1853.0,1852.9,1.07901]
[1746208804237,1.07906,1852.8,1852.7,3.555]
[1746208804433,1.07912,1852.7,1852.6,1.07914]
[1746208804632,2.69582,1852.7,1852.6,1.07914]
[1746208804837,3.13297741,1852.7,1852.6,1.07914]
[1746208805032,2.69582,1852.7,1852.6,1.07914]
[1746208805236,6.8290233,1852.7,1852.6,1.07914]
[1746208805438,5.7499033,1852.7,1852.6,1.07914]
[1746208805638,4.1332033,1852.7,1852.6,2.76624]
[1746208806032,5.2123233,1852.7,1852.6,2.76624]
[1746208806434,5.21224851,1852.7,1852.6,2.76624]
[1746208806739,4.13312851,1852.7,1852.6,2.76624]
[1746208807836,4.13310044,1852.7,1852.6,2.76624]
[1746208808037,4.13307664,1852.7,1852.6,2.76624]
[1746208808242,5.21219664,1852.7,1852.6,2.76624]
[1746208808633,4.13307664,1852.7,1852.6,2.76624]
[1746208808836,5.21219664,1852.7,1852.6,2.76624]
[1746208810042,4.13307664,1852.7,1852.6,2.76624]
[1746208812140,0.43707664,1852.7,1852.6,7.76624]
[1746208812637,6.64e-06,1852.7,1852.6,7.76624]
[1746208813140,6.64e-06,1852.7,1852.6,48.56624]
[1746208813341,2.74696,1853.2,1853.1,1.07889]
[1746208814141,6.44296,1853.2,1853.1,1.07889]
[1746208814438,5.3641,1853.2,1853.1,1.07889]
[1746208814638,5.3641,1853.2,1853.1,2.71529]
[1746208816337,3.696,1853.2,1853.1,2.71529]
[1746208817144,1.6683,1853.3,1853.2,1.07883]
[1746208817336,0.792,1853.4,1853.3,1.07877]
[1746208817537,0.792,1853.4,1853.3,2.76137]
[1746208817849,1.07863,1853.6,1853.5,1.07866]
[1746208818036,2.80443,1853.6,1853.5,1.07866]
[1746208818238,6.50043,1853.6,1853.5,1.07866]
[1746208822346,6.5004,1853.6,1853.5,1.07866]
[1746208824947,6.93163947,1853.6,1853.5,1.07866]
[1746208826451,1.07866,1853.5,1853.4,1.6873]
[1746208826652,1.07872,1853.4,1853.3,3.2078]
[1746208826951,1.07877,1853.3,1853.2,4.5978]
[1746208827257,6.84130947,1853.3,1853.2,1.0788]
[1746208830649,5.76253947,1853.3,1853.2,1.0788]
[1746208831145,5.76253947,1853.3,1853.2,4.2866]
[1746208831354,4.12723947,1853.3,1853.2,12.8046]
[1746208832151,0.43123947,1853.3,1853.2,12.8046]
[1746208832751,1.07852,1853.8,1853.7,1.07854]
[1746208832752,2.77862,1853.8,1853.7,1.07854]
[1746208833152,6.47462,1853.8,1853.7,1.07854]
[1746208833351,6.90568087,1853.8,1853.7,1.07854]
[1746208833854,5.82716087,1853.8,1853.7,1.07854]
[1746208834055,6.90564087,1853.8,1853.7,1.07854]
[1746208834452,5.82716087,1853.8,1853.7,1.07854]
[1746208834649,4.12706087,1853.8,1853.7,2.80444]
[1746208835252,0.43106087,1853.8,1853.7,2.80444]
[1746208835457,0.43106087,1853.8,1853.7,43.60444]
[1746208835753,1.6189,1854.0,1853.9,1.07842]
[1746208835952,1.6189,1854.0,1853.9,4.28622]
[1746208836161,2.04978316,1854.0,1853.9,4.28622]
[1746208836353,2.04978316,1854.0,1853.9,5.92242]
[1746208836857,2.04969602,1854.0,1853.9,5.92242]
[1746208837054,0.43079602,1854.0,1853.9,5.92242]
[1746208837263,4.12679602,1854.0,1853.9,5.92242]
[1746208837659,4.12679602,1854.0,1853.9,5.91679655]
[1746208838058,0.43877536,1854.0,1853.9,5.91679655]
[1746208838865,1.6353,1854.2,1854.1,1.07831]
[1746208839060,2.07400636,1854.2,1854.1,1.07831]
[1746208839258,1.6673,1854.4,1854.3,1.07819]
[1746208839457,1.24103108,1854.4,1854.3,4.28599]
[1746208839651,0.43863108,1854.4,1854.3,4.28599]
[1746208839856,0.43863108,1854.4,1854.3,5.96229]
[1746208840565,0.43863108,1854.4,1854.1,3.518]
[1746208840764,1.07825,1854.2,1854.1,4.5963]
[1746208840957,2.4689,1854.3,1854.0,4.022]
[1746208841162,1.07831,1854.1,1854.0,4.28617]
[1746208841361,1.51693108,1854.2,1854.1,1.07831]
[1746208841562,2.31553108,1854.2,1854.1,1.07831]
[1746208842165,6.01153108,1854.2,1854.1,1.07831]
[1746208842467,1.07831,1854.1,1854.0,4.28613]
[1746208842968,1.51694108,1854.1,1854.0,4.28613]
[1746208843265,5.21294108,1854.1,1854.0,4.28613]
[1746208844062,4.13463108,1854.1,1854.0,4.28613]
[1746208844262,5.21294108,1854.1,1854.0,4.28613]
[1746208844658,4.13463108,1854.1,1854.0,4.28613]
[1746208844865,5.21294108,1854.1,1854.0,4.28613]
[1746208845566,4.13463108,1854.1,1853.8,8.3453]
[1746208845871,1.07842,1853.9,1853.8,9.42378]
[1746208846262,4.13463108,1853.9,1853.8,9.42378]
[1746208846468,4.13463108,1853.9,1853.8,11.13768]
[1746208848170,0.43863108,1853.9,1853.8,11.13768]
[1746208850372,0.43863108,1853.9,1853.8,7.80328]
[1746208851774,0.43863108,1853.9,1853.8,9.53748]
[1746208852273,5.21305108,1853.9,1853.8,7.80328]
[1746208853066,5.21305108,1853.9,1853.8,4.28628]
[1746208853263,5.21305108,1853.9,1853.8,3.2078]
[1746208853874,5.21305108,1853.9,1853.8,4.28628]
[1746208855574,6.05005108,1853.9,1853.8,4.28628]
[1746208855768,6.05005108,1853.9,1853.8,1.07848]
[1746208858880,1.07848,1853.8,1853.7,1.07851]
[1746208859180,1.07866,1853.5,1853.4,1.0787]
[1746208859475,1.07888,1853.2,1853.1,7.14558826]
[1746208859676,1.07888,1853.2,1853.1,8.22445826]
[1746208860074,5.21351108,1853.2,1853.1,8.22445826]
[1746208860281,5.21452743,1853.2,1853.1,8.22445826]
[1746208860576,5.21452826,1853.2,1853.1,8.22445826]
[1746208860979,4.13564826,1853.2,1853.1,8.22445826]
[1746208861493,5.75584826,1853.2,1853.1,8.22445826]
[1746208862487,5.75584826,1853.2,1853.1,9.89565826]
[1746208862688,5.75584826,1853.2,1853.1,11.55405826]
[1746208862892,5.75584826,1853.2,1853.1,4.40847]
[1746208863187,2.05984826,1853.2,1853.1,4.40847]
[1746208863379,0.43964826,1853.2,1853.1,4.40847]
[1746208863787,0.43964826,1853.2,1853.1,9.40847]
[1746208865090,1.6912,1853.6,1853.5,1.07866]
[1746208865293,2.1302859,1853.6,1853.5,1.07866]
[1746208865482,0.4390859,1853.6,1853.5,1.07866]
[1746208865684,0.4390859,1853.6,1853.5,4.39646]
[1746208867189,0.4390859,1853.6,1853.5,45.19646]
[1746208867695,1.5176859,1853.6,1853.5,42.73776]
[1746208867995,2.3585859,1853.6,1853.5,42.73776]
[1746208868196,2.3585859,1853.6,1853.5,41.87866]
[1746208868391,0.4390859,1853.6,1853.5,41.87866]
[1746208868593,0.4390859,1853.6,1853.5,43.57696]
[1746208868794,3.1559859,1853.6,1853.5,41.87866]
[1746208868990,3.1559859,1853.6,1853.5,1.07866]
[1746208869296,5.7733859,1853.6,1853.4,3.2078]
[1746208869489,2.73486,1853.5,1853.4,4.28648]
[1746208869787,3.1739459,1853.5,1853.4,4.28648]
[1746208870094,5.7912859,1853.5,1853.4,4.28648]
[1746208870294,5.7912859,1853.5,1853.4,5.95798]
[1746208870495,4.1350859,1853.5,1853.4,5.95798]
[1746208871090,0.4390859,1853.5,1853.4,5.95798]
[1746208873095,2.0455859,1853.5,1853.4,5.95798]
[1746208873397,2.0455859,1853.5,1853.4,2.75018]
[1746208873600,1.07872,1853.4,1853.3,3.522]
[1746208873792,3.9182059,1853.4,1853.3,4.60077]
[1746208874099,3.9182059,1853.4,1853.3,1.07877]